[Event "European Online Club-ch-B 2021"]
[Site "Online"]
[Date "2021.03.27"]
[Round "8.20"]
[White "Veinberg, Nimrod"]
[Black "De Rover, Yong Hoon"]
[Result "1-0"]
[ECO "E34"]
[WhiteElo "2404"]
[BlackElo "2349"]
[Annotator "NA"]
[PlyCount "61"]
[EventDate "2021.03.27"]
[EventType "team-tourn"]
[EventCountry "NET"]
[SourceTitle "playchess.com"]
[Source "ChessBase"]
[SourceQuality "1"]
[TimeControl "900+5"]

1. d4 {[%emt 0:00:00]} Nf6 {[%emt 0:00:05]} 2. c4 {[%emt 0:00:02]} e6 {[%emt 0:00:24]} 3. Nc3 {[%emt 0:00:03]} Bb4 {[%emt 0:00:10]} 4. Qc2 {[%emt 0:00:01]} d5 {[%emt 0:00:12]} 5. cxd5 {[%emt 0:00:02]} Qxd5 {[%emt 0:00:07]} 6. e3 {[%emt 0:00:03]} c5 {[%emt 0:00:18]} 7. a3 {[%emt 0:00:29]} Bxc3+ {[%emt 0:00:53]} 8. bxc3 {[%emt 0:00:06]} O-O {[%emt 0:01:09]} 9. Nf3 {[%emt 0:00:03]} b6 {[%emt 0:01:06]} 10. c4 {[%emt 0:00:04]} Qd6 {[%emt 0:01:23]} 11. e4 {[%emt 0:00:07]} Qc7 {[%emt 0:00:34]} 12. Bd3 {[%emt 0:00:12]} h6 {[%emt 0:00:46]} 13. d5 {[%emt 0:00:45]} exd5 {[%emt 0:00:05]} 14. cxd5 {[%emt 0:00:28]} c4 {[%emt 0:01:58]} 15. Bb2 {[%emt 0:03:20]} Qe7 {[%emt 0:02:01]} 16. Bxc4 {[%emt 0:01:10]} Qxe4+ {[%emt 0:00:09]} 17. Qxe4 {[%emt 0:00:02]} Nxe4 {[%emt 0:00:00]} 18. O-O {[%emt 0:00:02]} Nd6 {[%emt 0:00:38]} 19. Ba2 {[%emt 0:00:14]} Ba6 {[%emt 0:00:58]} 20. Rfc1 {[%emt 0:00:05]} Nd7 {[%emt 0:00:26]} 21. Rc6 {[%emt 0:00:05]} Ne4 {[%emt 0:00:12]} 22. d6 {[%emt 0:01:27]} Ndc5 {[%emt 0:01:31]} 23. Ne5 {[%emt 0:01:40]} Bb5 {[%emt 0:00:21]} 24. Rc7 {[%emt 0:00:06]} Nxd6 {[%emt 0:00:09]} 25. Rd1 {[%emt 0:00:03]} Rad8 {[%emt 0:00:16]} 26. h3 {[%emt 0:01:27]} a5 {[%emt 0:00:17]} 27. Ng6 {[%emt 0:01:54]} Nc4 {[%emt 0:00:39]} 28. Ne7+ {[%emt 0:00:21]} Kh8 {[%emt 0:00:18]} 29. Rxd8 {[%emt 0:00:43]} Rxd8 {[%emt 0:00:04]} 30. Bxc4 {[%emt 0:00:00]} Bxc4 {[%emt 0:00:04]} 31. Nf5 {[%emt 0:00:02]} 1-0

[Event "European Online Club-ch-B 2021"]
[Site "Online"]
[Date "2021.03.27"]
[Round "9.1"]
[White "Gorodetzky, David"]
[Black "Chlpik, Martin"]
[Result "1-0"]
[ECO "B20"]
[WhiteElo "2495"]
[BlackElo "2199"]
[Annotator "ChessBase"]
[PlyCount "129"]
[EventDate "2021.03.27"]
[EventType "team-tourn"]
[EventCountry "NET"]
[SourceTitle "playchess.com"]
[Source "ChessBase"]
[SourceQuality "1"]
[TimeControl "900+5"]

1. f4 {[%emt 0:00:00]} Nf6 {[%emt 0:00:25]} 2. Nf3 {[%emt 0:00:02]} g6 {[%emt 0:00:02]} 3. g3 {[%emt 0:00:02]} Bg7 {[%emt 0:00:02]} 4. Bg2 {[%emt 0:00:02]} O-O {[%emt 0:00:00]} 5. O-O {[%emt 0:00:00]} d6 {[%emt 0:00:02]} 6. d3 {[%emt 0:00:02]} c5 {[%emt 0:00:05]} 7. e4 {[%emt 0:00:06]} Nc6 {[%emt 0:00:03]} 8. Kh1 {[%emt 0:00:04]} Rb8 {[%emt 0:00:35]} 9. a4 {[%emt 0:00:05]} a6 {[%emt 0:00:03]} 10. c3 {[%emt 0:00:07]} b5 {[%emt 0:00:10]} 11. axb5 {[%emt 0:00:03]} axb5 {[%emt 0:00:00]} 12. Qc2 {[%emt 0:00:00]} Bd7 {[%emt 0:00:49]} 13. Be3 {[%emt 0:00:03]} Qc8 {[%emt 0:00:43]} 14. Nbd2 {[%emt 0:00:10]} b4 {[%emt 0:00:22]} 15. Nc4 {[%emt 0:00:11]} Bh3 {[%emt 0:00:38]} 16. Bg1 {[%emt 0:00:10]} Bxg2+ {[%emt 0:00:11]} 17. Kxg2 {[%emt 0:00:03]} bxc3 {[%emt 0:00:15]} 18. bxc3 {[%emt 0:00:03]} Nd7 {[%emt 0:00:29]} 19. Ra3 {[%emt 0:00:20]} Nb6 {[%emt 0:00:24]} 20. Ncd2 {[%emt 0:00:09]} Ra8 {[%emt 0:01:51]} 21. Rfa1 {[%emt 0:00:12]} Qb7 {[%emt 0:00:53]} 22. Qb3 {[%emt 0:00:14]} Rxa3 {[%emt 0:00:23]} 23. Rxa3 {[%emt 0:00:03]} Rb8 {[%emt 0:00:03]} 24. Ng5 {[%emt 0:00:28]} e6 {[%emt 0:01:04]} 25. Qa2 {[%emt 0:00:03]} h6 {[%emt 0:00:17]} 26. Ngf3 {[%emt 0:00:04]} Ra8 {[%emt 0:01:09]} 27. Rxa8+ {[%emt 0:00:15]} Nxa8 {[%emt 0:00:11]} 28. Nc4 {[%emt 0:00:09]} Bf8 {[%emt 0:01:06]} 29. g4 {[%emt 0:00:52]} Nc7 {[%emt 0:00:09]} 30. h4 {[%emt 0:00:11]} Nb5 {[%emt 0:00:09]} 31. Qb3 {[%emt 0:00:05]} d5 {[%emt 0:00:29]} 32. Ncd2 {[%emt 0:00:45]} Na5 {[%emt 0:01:34]} 33. Qa4 {[%emt 0:00:30]} Qb6 {[%emt 0:00:05]} 34. Qc2 {[%emt 0:00:31]} Qc7 {[%emt 0:00:38]} 35. Be3 {[%emt 0:00:26]} c4 {[%emt 0:00:17]} 36. d4 {[%emt 0:00:13]} Nb3 {[%emt 0:00:22]} 37. exd5 {[%emt 0:00:56]} exd5 {[%emt 0:00:03]} 38. f5 {[%emt 0:00:01]} Qa5 {[%emt 0:00:18]} 39. fxg6 {[%emt 0:00:30]} Qxc3 {[%emt 0:00:03]} 40. Qf5 {[%emt 0:00:12]} Nd6 {[%emt 0:00:28]} 41. gxf7+ {[%emt 0:00:23]} Nxf7 {[%emt 0:00:02]} 42. Bf4 {[%emt 0:00:15]} Nxd4 {[%emt 0:00:38]} 43. Qxd5 {[%emt 0:00:06]} Ne2 {[%emt 0:00:21]} 44. Bh2 {[%emt 0:00:43]} Qd3 {[%emt 0:00:03]} 45. Qxc4 {[%emt 0:00:20]} Qxc4 {[%emt 0:00:02]} 46. Nxc4 {[%emt 0:00:00]} Nc3 {[%emt 0:00:02]} 47. Ne3 {[%emt 0:00:08]} Ne4 {[%emt 0:00:04]} 48. Bf4 {[%emt 0:00:06]} Kh7 {[%emt 0:00:05]} 49. Nd5 {[%emt 0:00:06]} Kg6 {[%emt 0:00:09]} 50. Be3 {[%emt 0:00:10]} Kh7 {[%emt 0:00:29]} 51. Kf1 {[%emt 0:00:25]} Bg7 {[%emt 0:00:08]} 52. Bf4 {[%emt 0:00:12]} Nf6 {[%emt 0:00:06]} 53. Nxf6+ {[%emt 0:00:24]} Bxf6 {[%emt 0:00:00]} 54. h5 {[%emt 0:00:01]} Nd8 {[%emt 0:00:14]} 55. Ke2 {[%emt 0:00:02]} Ne6 {[%emt 0:00:02]} 56. Be3 {[%emt 0:00:01]} Be7 {[%emt 0:00:07]} 57. Kd3 {[%emt 0:00:04]} Kg7 {[%emt 0:00:07]} 58. Ke4 {[%emt 0:00:02]} Nf8 {[%emt 0:00:02]} 59. Nd4 {[%emt 0:00:07]} Kh7 {[%emt 0:00:14]} 60. Nf5 {[%emt 0:00:08]} Bg5 {[%emt 0:00:01]} 61. Bxg5 {[%emt 0:00:06]} hxg5 {[%emt 0:00:00]} 62. Nd4 {[%emt 0:00:01]} Kh6 {[%emt 0:00:03]} 63. Kf5 {[%emt 0:00:04]} Nh7 {[%emt 0:00:01]} 64. Ne6 {[%emt 0:00:05]} Nf8 {[%emt 0:00:09]} 65. Nxf8 {[%emt 0:00:04]} 1-0

[Event "European Online Club-ch-B 2021"]
[Site "Online"]
[Date "2021.03.27"]
[Round "9.2"]
[White "Solcan, Martin"]
[Black "Parkhov, Yair"]
[Result "0-1"]
[ECO "A00"]
[WhiteElo "2076"]
[BlackElo "2407"]
[Annotator "NA"]
[PlyCount "148"]
[EventDate "2021.03.27"]
[EventType "team-tourn"]
[EventCountry "NET"]
[SourceTitle "playchess.com"]
[Source "ChessBase"]
[SourceQuality "1"]
[TimeControl "900+5"]

1. g3 {[%emt 0:00:00]} d5 {[%emt 0:00:04]} 2. Bg2 {[%emt 0:00:03]} e5 {[%emt 0:00:01]} 3. c4 {[%emt 0:00:01]} d4 {[%emt 0:00:02]} 4. d3 {[%emt 0:00:02]} Nf6 {[%emt 0:00:06]} 5. Bg5 {[%emt 0:00:03]} Nbd7 {[%emt 0:00:05]} 6. Nf3 {[%emt 0:00:03]} Be7 {[%emt 0:00:55]} 7. O-O {[%emt 0:00:04]} h6 {[%emt 0:00:16]} 8. Bxf6 {[%emt 0:00:01]} Bxf6 {[%emt 0:00:00]} 9. b4 {[%emt 0:00:10]} a5 {[%emt 0:00:08]} 10. b5 {[%emt 0:00:06]} Nc5 {[%emt 0:00:31]} 11. a4 {[%emt 0:00:05]} O-O {[%emt 0:00:35]} 12. Nbd2 {[%emt 0:00:03]} Bg4 {[%emt 0:01:58]} 13. Nb3 {[%emt 0:00:09]} Nxb3 {[%emt 0:01:30]} 14. Qxb3 {[%emt 0:00:03]} c5 {[%emt 0:00:01]} 15. bxc6 {[%emt 0:00:19]} bxc6 {[%emt 0:00:02]} 16. Rab1 {[%emt 0:00:09]} Rb8 {[%emt 0:00:08]} 17. Qc2 {[%emt 0:00:38]} Qc7 {[%emt 0:01:16]} 18. h3 {[%emt 0:00:17]} Bd7 {[%emt 0:00:32]} 19. Nd2 {[%emt 0:01:14]} Be7 {[%emt 0:01:02]} 20. c5 {[%emt 0:00:48]} Qa7 {[%emt 0:00:50]} 21. Rfc1 {[%emt 0:01:19]} Rxb1 {[%emt 0:00:23]} 22. Rxb1 {[%emt 0:01:18]} Bxc5 {[%emt 0:00:09]} 23. Nb3 {[%emt 0:02:38]} Bb4 {[%emt 0:00:07]} 24. Rc1 {[%emt 0:01:38]} Bc3 {[%emt 0:00:24]} 25. Nd2 {[%emt 0:00:39]} Rb8 {[%emt 0:00:34]} 26. Ne4 {[%emt 0:00:42]} Rb2 {[%emt 0:00:04]} 27. Qd1 {[%emt 0:00:02]} Bb4 {[%emt 0:00:09]} 28. Rc2 {[%emt 0:00:14]} Rxc2 {[%emt 0:00:02]} 29. Qxc2 {[%emt 0:00:01]} Qb6 {[%emt 0:00:14]} 30. Qb3 {[%emt 0:00:11]} Be6 {[%emt 0:00:07]} 31. Qb2 {[%emt 0:00:06]} f5 {[%emt 0:00:37]} 32. Nd6 {[%emt 0:00:08]} Qc5 {[%emt 0:00:03]} 33. Nb7 {[%emt 0:00:11]} Qc3 {[%emt 0:00:04]} 34. Qb1 {[%emt 0:00:18]} c5 {[%emt 0:01:21]} 35. Nd8 {[%emt 0:00:23]} Bb3 {[%emt 0:00:33]} 36. Nc6 {[%emt 0:00:17]} Qe1+ {[%emt 0:00:27]} 37. Qxe1 {[%emt 0:00:05]} Bxe1 {[%emt 0:00:00]} 38. Nxe5 {[%emt 0:00:02]} Bxa4 {[%emt 0:00:20]} 39. Bd5+ {[%emt 0:00:03]} Kf8 {[%emt 0:00:24]} 40. Be6 {[%emt 0:01:08]} Ke7 {[%emt 0:02:01]} 41. Bxf5 {[%emt 0:00:10]} Kd6 {[%emt 0:00:03]} 42. Nc4+ {[%emt 0:00:06]} Kc7 {[%emt 0:00:04]} 43. e4 {[%emt 0:00:57]} Bb3 {[%emt 0:00:12]} 44. e5 {[%emt 0:00:30]} a4 {[%emt 0:00:06]} 45. e6 {[%emt 0:00:33]} Bxc4 {[%emt 0:00:02]} 46. dxc4 {[%emt 0:00:01]} Kd6 {[%emt 0:00:04]} 47. Kf1 {[%emt 0:00:04]} Bc3 {[%emt 0:00:04]} 48. f4 {[%emt 0:00:11]} a3 {[%emt 0:00:02]} 49. Bb1 {[%emt 0:00:03]} Kxe6 {[%emt 0:00:01]} 50. Ke2 {[%emt 0:00:02]} Kf6 {[%emt 0:00:06]} 51. Kf3 {[%emt 0:00:15]} d3 {[%emt 0:00:11]} 52. Ke3 {[%emt 0:00:08]} d2 {[%emt 0:00:02]} 53. Ke2 {[%emt 0:00:02]} Ke6 {[%emt 0:00:11]} 54. Kd1 {[%emt 0:00:13]} Bb4 {[%emt 0:00:05]} 55. Ke2 {[%emt 0:00:05]} Ke7 {[%emt 0:00:06]} 56. Kd1 {[%emt 0:00:06]} Kd6 {[%emt 0:00:03]} 57. Ke2 {[%emt 0:00:02]} Kc7 {[%emt 0:00:02]} 58. Kd1 {[%emt 0:00:02]} Bc3 {[%emt 0:00:02]} 59. Ba2 {[%emt 0:00:12]} Kd6 {[%emt 0:00:09]} 60. Bb1 {[%emt 0:00:02]} Ke6 {[%emt 0:00:02]} 61. Ke2 {[%emt 0:00:02]} Kf6 {[%emt 0:00:01]} 62. Kd1 {[%emt 0:00:03]} g5 {[%emt 0:00:01]} 63. Ke2 {[%emt 0:00:38]} h5 {[%emt 0:00:09]} 64. fxg5+ {[%emt 0:00:05]} Kxg5 {[%emt 0:00:02]} 65. Kd1 {[%emt 0:00:02]} h4 {[%emt 0:00:07]} 66. gxh4+ {[%emt 0:00:04]} Kxh4 {[%emt 0:00:01]} 67. Ke2 {[%emt 0:00:10]} Kxh3 {[%emt 0:00:02]} 68. Kd1 {[%emt 0:00:02]} Kg3 {[%emt 0:00:01]} 69. Ke2 {[%emt 0:00:03]} Kf4 {[%emt 0:00:01]} 70. Ba2 {[%emt 0:00:07]} Ke4 {[%emt 0:00:04]} 71. Bb3 {[%emt 0:00:03]} Kd4 {[%emt 0:00:03]} 72. Ba2 {[%emt 0:00:05]} Bb4 {[%emt 0:00:01]} 73. Kd1 {[%emt 0:00:07]} Kc3 {[%emt 0:00:02]} 74. Bb1 {[%emt 0:00:05]} Kb2 {[%emt 0:00:04]} 0-1

[Event "European Online Club-ch-B 2021"]
[Site "Online"]
[Date "2021.03.27"]
[Round "9.3"]
[White "Veinberg, Nimrod"]
[Black "Lecky, Juraj"]
[Result "1-0"]
[ECO "A67"]
[WhiteElo "2404"]
[BlackElo "2070"]
[Annotator "NA"]
[PlyCount "51"]
[EventDate "2021.03.27"]
[EventType "team-tourn"]
[EventCountry "NET"]
[SourceTitle "playchess.com"]
[Source "ChessBase"]
[SourceQuality "1"]
[TimeControl "900+5"]

1. d4 {[%emt 0:00:00]} Nf6 {[%emt 0:00:03]} 2. c4 {[%emt 0:00:02]} e6 {[%emt 0:00:01]} 3. Nc3 {[%emt 0:00:01]} c5 {[%emt 0:00:26]} 4. d5 {[%emt 0:00:02]} exd5 {[%emt 0:00:01]} 5. cxd5 {[%emt 0:00:00]} d6 {[%emt 0:00:01]} 6. e4 {[%emt 0:00:01]} g6 {[%emt 0:00:01]} 7. f4 {[%emt 0:00:02]} Bg7 {[%emt 0:00:01]} 8. Bb5+ {[%emt 0:00:04]} Nfd7 {[%emt 0:00:02]} 9. a4 {[%emt 0:00:01]} O-O {[%emt 0:00:04]} 10. Nf3 {[%emt 0:00:03]} Na6 {[%emt 0:00:03]} 11. O-O {[%emt 0:00:01]} Nb4 {[%emt 0:00:01]} 12. Be3 {[%emt 0:00:02]} a6 {[%emt 0:00:08]} 13. Be2 {[%emt 0:00:02]} Qe7 {[%emt 0:01:39]} 14. Bf2 {[%emt 0:00:12]} f5 {[%emt 0:00:15]} 15. e5 {[%emt 0:01:30]} dxe5 {[%emt 0:01:15]} 16. d6 {[%emt 0:00:04]} Qe8 {[%emt 0:00:01]} 17. Bc4+ {[%emt 0:00:03]} Kh8 {[%emt 0:00:04]} 18. fxe5 {[%emt 0:00:23]} Nxe5 {[%emt 0:00:25]} 19. Nxe5 {[%emt 0:00:43]} Bxe5 {[%emt 0:00:12]} 20. Bxc5 {[%emt 0:00:17]} Nc6 {[%emt 0:03:57]} 21. Nd5 {[%emt 0:00:17]} Qf7 {[%emt 0:01:28]} 22. Nb6 {[%emt 0:00:15]} Be6 {[%emt 0:00:06]} 23. Bxe6 {[%emt 0:00:05]} Qxe6 {[%emt 0:00:03]} 24. Nxa8 {[%emt 0:01:49]} Rxa8 {[%emt 0:00:05]} 25. Re1 {[%emt 0:00:16]} Qf6 {[%emt 0:00:05]} 26. d7 {[%emt 0:00:26]} 1-0

[Event "European Online Club-ch-B 2021"]
[Site "Online"]
[Date "2021.03.27"]
[Round "9.4"]
[White "Nikel, Rastislav"]
[Black "Zlatin, Alexander"]
[Result "0-1"]
[ECO "A42"]
[WhiteElo "1984"]
[BlackElo "2343"]
[Annotator "NA"]
[PlyCount "90"]
[EventDate "2021.03.27"]
[EventType "team-tourn"]
[EventCountry "NET"]
[SourceTitle "playchess.com"]
[Source "ChessBase"]
[SourceQuality "1"]
[TimeControl "900+5"]

1. d4 {[%emt 0:00:00]} g6 {[%emt 0:00:05]} 2. c4 {[%emt 0:00:03]} Bg7 {[%emt 0:00:02]} 3. Nc3 {[%emt 0:00:02]} d6 {[%emt 0:00:02]} 4. e4 {[%emt 0:00:03]} e5 {[%emt 0:00:20]} 5. Nf3 {[%emt 0:00:25]} exd4 {[%emt 0:00:13]} 6. Nxd4 {[%emt 0:00:03]} Nc6 {[%emt 0:00:03]} 7. Be3 {[%emt 0:00:07]} Nge7 {[%emt 0:00:05]} 8. Be2 {[%emt 0:00:04]} O-O {[%emt 0:00:12]} 9. O-O {[%emt 0:00:04]} f5 {[%emt 0:00:13]} 10. exf5 {[%emt 0:00:09]} Nxf5 {[%emt 0:00:13]} 11. Nxf5 {[%emt 0:00:04]} Bxf5 {[%emt 0:00:00]} 12. Qd2 {[%emt 0:00:07]} Ne5 {[%emt 0:00:25]} 13. Rac1 {[%emt 0:00:21]} Qd7 {[%emt 0:00:39]} 14. c5 {[%emt 0:01:11]} dxc5 {[%emt 0:00:45]} 15. Qxd7 {[%emt 0:00:11]} Nxd7 {[%emt 0:00:43]} 16. Nd5 {[%emt 0:00:07]} c6 {[%emt 0:01:06]} 17. Ne7+ {[%emt 0:00:04]} Kh8 {[%emt 0:00:02]} 18. Nxf5 {[%emt 0:00:03]} Rxf5 {[%emt 0:00:09]} 19. Bg4 {[%emt 0:00:04]} Rd5 {[%emt 0:00:02]} 20. Bxd7 {[%emt 0:00:12]} Rxd7 {[%emt 0:00:02]} 21. Rxc5 {[%emt 0:01:24]} Bxb2 {[%emt 0:00:16]} 22. Rb1 {[%emt 0:00:12]} Bf6 {[%emt 0:00:11]} 23. a4 {[%emt 0:00:07]} Kg7 {[%emt 0:00:11]} 24. a5 {[%emt 0:00:08]} Rad8 {[%emt 0:00:06]} 25. Kf1 {[%emt 0:00:25]} Rd1+ {[%emt 0:00:03]} 26. Rxd1 {[%emt 0:00:03]} Rxd1+ {[%emt 0:00:00]} 27. Ke2 {[%emt 0:00:10]} Ra1 {[%emt 0:00:05]} 28. Bd2 {[%emt 0:00:05]} Ra2 {[%emt 0:00:09]} 29. Kd3 {[%emt 0:00:06]} Bd4 {[%emt 0:00:40]} 30. Rc4 {[%emt 0:00:18]} c5 {[%emt 0:00:16]} 31. f3 {[%emt 0:00:17]} b5 {[%emt 0:00:23]} 32. axb6 {[%emt 0:00:03]} axb6 {[%emt 0:00:00]} 33. Rc1 {[%emt 0:02:18]} Rb2 {[%emt 0:00:25]} 34. g4 {[%emt 0:00:21]} Be5 {[%emt 0:00:13]} 35. h4 {[%emt 0:00:07]} Rxd2+ {[%emt 0:00:04]} 36. Kxd2 {[%emt 0:00:21]} Bf4+ {[%emt 0:00:02]} 37. Kc2 {[%emt 0:00:02]} Bxc1 {[%emt 0:00:00]} 38. Kxc1 {[%emt 0:00:01]} Kf6 {[%emt 0:00:04]} 39. f4 {[%emt 0:00:03]} Ke6 {[%emt 0:00:02]} 40. Kc2 {[%emt 0:00:02]} h5 {[%emt 0:00:08]} 41. f5+ {[%emt 0:00:20]} gxf5 {[%emt 0:00:02]} 42. g5 {[%emt 0:00:21]} b5 {[%emt 0:00:05]} 43. Kd3 {[%emt 0:00:02]} b4 {[%emt 0:00:01]} 44. Kc4 {[%emt 0:00:02]} f4 {[%emt 0:00:01]} 45. Kd3 {[%emt 0:00:03]} b3 {[%emt 0:00:03]} 0-1

[Event "European Online Club-ch-B 2021"]
[Site "Online"]
[Date "2021.03.27"]
[Round "9.5"]
[White "Efimov, Igor"]
[Black "Santos Latasa, Jaime"]
[Result "0-1"]
[ECO "D01"]
[WhiteElo "2416"]
[BlackElo "2608"]
[Annotator "ChessBase"]
[PlyCount "60"]
[EventDate "2021.03.27"]
[EventType "team-tourn"]
[EventCountry "NET"]
[SourceTitle "playchess.com"]
[Source "ChessBase"]
[SourceQuality "1"]
[TimeControl "900+5"]

1. d4 {[%emt 0:00:00]} Nf6 {[%emt 0:00:04]} 2. Bg5 {[%emt 0:00:03]} c5 {[%emt 0:00:03]} 3. Nc3 {[%emt 0:00:06]} d5 {[%emt 0:00:01]} 4. Bxf6 {[%emt 0:00:19]} gxf6 {[%emt 0:00:04]} 5. e3 {[%emt 0:00:16]} e6 {[%emt 0:00:05]} 6. Nf3 {[%emt 0:00:05]} Nc6 {[%emt 0:00:06]} 7. Be2 {[%emt 0:00:18]} a6 {[%emt 0:00:16]} 8. O-O {[%emt 0:00:03]} f5 {[%emt 0:00:03]} 9. dxc5 {[%emt 0:00:20]} Bxc5 {[%emt 0:00:04]} 10. Nd4 {[%emt 0:00:04]} Bd7 {[%emt 0:00:06]} 11. Bf3 {[%emt 0:00:11]} O-O {[%emt 0:00:18]} 12. Nce2 {[%emt 0:00:07]} Ne5 {[%emt 0:00:03]} 13. Ng3 {[%emt 0:00:15]} Kh8 {[%emt 0:00:06]} 14. a4 {[%emt 0:00:15]} Rc8 {[%emt 0:00:08]} 15. c3 {[%emt 0:00:03]} Qe7 {[%emt 0:00:18]} 16. Re1 {[%emt 0:00:10]} Rg8 {[%emt 0:00:14]} 17. Bh5 {[%emt 0:00:39]} Qf6 {[%emt 0:00:53]} 18. Nf3 {[%emt 0:01:04]} Nc4 {[%emt 0:00:12]} 19. b3 {[%emt 0:00:18]} Nd6 {[%emt 0:00:07]} 20. Nd4 {[%emt 0:00:26]} Ba7 {[%emt 0:00:14]} 21. Rc1 {[%emt 0:00:11]} Ne4 {[%emt 0:00:24]} 22. c4 {[%emt 0:00:21]} f4 {[%emt 0:03:11]} 23. Nxe4 {[%emt 0:00:19]} dxe4 {[%emt 0:00:03]} 24. g3 {[%emt 0:01:07]} Rcd8 {[%emt 0:00:23]} 25. Qc2 {[%emt 0:00:20]} e5 {[%emt 0:00:56]} 26. Ne2 {[%emt 0:00:08]} fxe3 {[%emt 0:00:04]} 27. fxe3 {[%emt 0:01:08]} Qg5 {[%emt 0:00:05]} 28. Nc3 {[%emt 0:01:34]} Bxe3+ {[%emt 0:00:50]} 29. Rxe3 {[%emt 0:00:05]} Qxe3+ {[%emt 0:00:03]} 30. Kg2 {[%emt 0:00:12]} Bg4 {[%emt 0:00:18]} 0-1

[Event "European Online Club-ch-B 2021"]
[Site "Online"]
[Date "2021.03.27"]
[Round "9.6"]
[White "Admiraal, Miguoel"]
[Black "Bagheri, Amir"]
[Result "1-0"]
[ECO "A45"]
[WhiteElo "2475"]
[BlackElo "2348"]
[Annotator "ChessBase"]
[PlyCount "35"]
[EventDate "2021.03.27"]
[EventType "team-tourn"]
[EventCountry "NET"]
[SourceTitle "playchess.com"]
[Source "ChessBase"]
[SourceQuality "1"]
[TimeControl "900+5"]

1. d4 {[%emt 0:00:00]} Nf6 {[%emt 0:00:04]} 2. Bg5 {[%emt 0:00:04]} e6 {[%emt 0:00:08]} 3. e4 {[%emt 0:00:01]} h6 {[%emt 0:00:07]} 4. Bxf6 {[%emt 0:00:02]} Qxf6 {[%emt 0:00:01]} 5. c3 {[%emt 0:00:00]} d6 {[%emt 0:00:06]} 6. Bd3 {[%emt 0:00:02]} g6 {[%emt 0:00:06]} 7. Ne2 {[%emt 0:00:02]} e5 {[%emt 0:00:25]} 8. O-O {[%emt 0:00:02]} Bg7 {[%emt 0:00:07]} 9. f4 {[%emt 0:00:01]} exd4 {[%emt 0:00:08]} 10. cxd4 {[%emt 0:00:09]} Bg4 {[%emt 0:00:56]} 11. Qa4+ {[%emt 0:01:52]} Nd7 {[%emt 0:00:31]} 12. Nbc3 {[%emt 0:00:12]} Bxe2 {[%emt 0:00:07]} 13. Nxe2 {[%emt 0:00:46]} Qe7 {[%emt 0:00:30]} 14. f5 {[%emt 0:01:30]} O-O {[%emt 0:01:40]} 15. fxg6 {[%emt 0:00:47]} fxg6 {[%emt 0:00:03]} 16. Nf4 {[%emt 0:00:03]} Nb6 {[%emt 0:02:54]} 17. Qb3+ {[%emt 0:00:15]} Qf7 {[%emt 0:00:22]} 18. Ne6 {[%emt 0:00:14]} 1-0

[Event "European Online Club-ch-B 2021"]
[Site "Online"]
[Date "2021.03.27"]
[Round "9.7"]
[White "Villegas, Pierre"]
[Black "Matnadze, Ana"]
[Result "1/2-1/2"]
[ECO "D35"]
[WhiteElo "2367"]
[BlackElo "2421"]
[Annotator "NA"]
[PlyCount "101"]
[EventDate "2021.03.27"]
[EventType "team-tourn"]
[EventCountry "NET"]
[SourceTitle "playchess.com"]
[Source "ChessBase"]
[SourceQuality "1"]
[TimeControl "900+5"]

1. d4 {[%emt 0:00:00]} Nf6 {[%emt 0:00:05]} 2. c4 {[%emt 0:00:04]} e6 {[%emt 0:00:02]} 3. Nc3 {[%emt 0:00:02]} d5 {[%emt 0:00:02]} 4. cxd5 {[%emt 0:00:02]} exd5 {[%emt 0:00:03]} 5. Bg5 {[%emt 0:00:02]} c6 {[%emt 0:00:02]} 6. e3 {[%emt 0:00:03]} Nbd7 {[%emt 0:00:03]} 7. Bd3 {[%emt 0:00:03]} Be7 {[%emt 0:00:01]} 8. Nge2 {[%emt 0:00:05]} Nf8 {[%emt 0:00:02]} 9. O-O {[%emt 0:00:09]} Ne6 {[%emt 0:00:02]} 10. Bh4 {[%emt 0:00:02]} g6 {[%emt 0:00:08]} 11. f3 {[%emt 0:00:18]} O-O {[%emt 0:00:12]} 12. Kh1 {[%emt 0:00:52]} Ng7 {[%emt 0:00:16]} 13. Bf2 {[%emt 0:00:16]} c5 {[%emt 0:00:15]} 14. dxc5 {[%emt 0:00:37]} Bxc5 {[%emt 0:00:06]} 15. Qd2 {[%emt 0:00:14]} Re8 {[%emt 0:00:21]} 16. Nb5 {[%emt 0:02:02]} a6 {[%emt 0:00:18]} 17. Nbd4 {[%emt 0:00:04]} Bd7 {[%emt 0:00:38]} 18. Rac1 {[%emt 0:00:17]} Rc8 {[%emt 0:00:03]} 19. Rc2 {[%emt 0:02:07]} Qe7 {[%emt 0:00:34]} 20. Rfc1 {[%emt 0:00:35]} Bd6 {[%emt 0:00:03]} 21. Rxc8 {[%emt 0:00:19]} Bxc8 {[%emt 0:00:03]} 22. Rd1 {[%emt 0:01:16]} Bd7 {[%emt 0:00:10]} 23. Nc3 {[%emt 0:00:20]} h6 {[%emt 0:00:39]} 24. e4 {[%emt 0:00:51]} Ngh5 {[%emt 0:01:53]} 25. g3 {[%emt 0:01:19]} Bb4 {[%emt 0:00:48]} 26. exd5 {[%emt 0:00:27]} Qd6 {[%emt 0:00:44]} 27. Qxh6 {[%emt 0:01:29]} Bxc3 {[%emt 0:00:17]} 28. bxc3 {[%emt 0:00:02]} Qxd5 {[%emt 0:00:13]} 29. c4 {[%emt 0:00:40]} Qa5 {[%emt 0:00:53]} 30. Qd2 {[%emt 0:00:03]} Qc7 {[%emt 0:00:29]} 31. Re1 {[%emt 0:00:19]} Rd8 {[%emt 0:00:07]} 32. Qg5 {[%emt 0:00:18]} Bc6 {[%emt 0:00:42]} 33. Nxc6 {[%emt 0:00:38]} Qxc6 {[%emt 0:00:03]} 34. Be4 {[%emt 0:00:26]} Qc7 {[%emt 0:01:28]} 35. g4 {[%emt 0:00:27]} Nxe4 {[%emt 0:00:11]} 36. Rxe4 {[%emt 0:00:01]} Ng7 {[%emt 0:00:13]} 37. Qf6 {[%emt 0:00:37]} Rd6 {[%emt 0:00:29]} 38. Qe5 {[%emt 0:00:29]} Qd7 {[%emt 0:00:04]} 39. Kg2 {[%emt 0:00:04]} Ne6 {[%emt 0:00:18]} 40. h4 {[%emt 0:00:11]} Rd2 {[%emt 0:00:15]} 41. h5 {[%emt 0:00:03]} g5 {[%emt 0:00:09]} 42. h6 {[%emt 0:00:03]} Qd8 {[%emt 0:01:40]} 43. Kg3 {[%emt 0:00:09]} Qd6 {[%emt 0:00:30]} 44. Be3 {[%emt 0:00:06]} Qxe5+ {[%emt 0:00:38]} 45. Rxe5 {[%emt 0:00:01]} Re2 {[%emt 0:00:01]} 46. a4 {[%emt 0:00:09]} Kh7 {[%emt 0:00:04]} 47. a5 {[%emt 0:00:06]} Kg6 {[%emt 0:00:24]} 48. Kh3 {[%emt 0:00:02]} Kh7 {[%emt 0:00:16]} 49. Kg3 {[%emt 0:00:02]} Kg6 {[%emt 0:00:06]} 50. Re4 {[%emt 0:00:03]} Kh7 {[%emt 0:00:26]} 51. Re5 {[%emt 0:00:05]} 1/2-1/2